bitfinex/quotes_ETHUSD_20250725
["timestamp","ask_amount","ask_price","bid_price","bid_amount"]
[1753469183534,22.30084305,3654.1,3654.0,0.47480001]
[1753469183868,22.30084305,3654.1,3654.0,1e-08]
[1753469184633,22.88413848,3654.1,3654.0,1e-08]
[1753469184962,22.88413848,3654.1,3653.3,0.4758]
[1753469184963,3.28717632,3653.4,3653.3,0.4758]
[1753469185162,11.23997632,3653.4,3653.3,0.001]
[1753469185362,11.37677632,3653.4,3653.3,0.001]
[1753469185569,13.01877632,3653.4,3653.3,0.4758]
[1753469186134,12.25997632,3653.4,3653.3,0.4758]
[1753469186342,8.06597632,3653.4,3653.3,0.4758]
[1753469186670,11.70797632,3653.4,3653.3,0.9062]
[1753469187968,11.84288095,3653.4,3653.3,0.9062]
[1753469189163,11.70797632,3653.4,3653.3,1.6924]
[1753469189676,10.06597632,3653.4,3653.3,1.6924]
[1753469190241,10.06597632,3653.4,3653.3,0.9062]
[1753469190438,0.1368,3653.4,3653.3,0.9062]
[1753469190663,4.19,3653.4,3653.3,0.9062]
[1753469190856,4.19,3653.4,3653.3,1.043]
[1753469192374,6.92717632,3653.4,3653.3,1.043]
[1753469193587,2.73703199,3653.6,3653.3,1.22602]
[1753469193787,4.192,3653.5,3653.3,0.32082]
[1753469194095,4.192,3653.5,3653.4,1.688]
[1753469195368,6.9291014,3653.5,3653.4,1.688]
[1753469195689,4.192,3653.5,3653.4,1.688]
[1753469195990,6.9291014,3653.5,3653.4,1.688]
[1753469196992,6.9291014,3653.5,3653.3,0.1378]
[1753469197195,6.9291014,3653.5,3653.3,0.001]
[1753469197196,4.192,3653.5,3653.3,0.001]
[1753469197367,2.7371014,3653.5,3653.4,1.675]
[1753469197567,2.73660966,3654.2,3653.4,1.675]
[1753469197568,4.197,3654.1,3653.6,0.7698]
[1753469197894,4.197,3654.1,3653.3,0.001]
[1753469197895,4.197,3654.1,3653.8,0.7698]
[1753469198058,4.197,3654.1,3653.9,0.9052]
[1753469198388,0.002,3654.1,3654.0,4.41662687]
[1753469198555,0.002,3654.1,3654.0,5.13197084]
[1753469199694,0.002,3654.1,3654.0,2.39524397]
[1753469199992,0.002,3654.1,3654.0,1.6799]
[1753469201592,4.196,3654.1,3654.0,1.6799]
[1753469201780,6.93265197,3654.1,3654.0,1.6799]
[1753469201987,4.196,3654.1,3654.0,1.6799]
[1753469207592,4.196,3654.1,3654.0,1.8167]
[1753469208195,0.002,3654.1,3654.0,5.0087844]
[1753469208398,4.193,3654.1,3654.0,5.0087844]
[1753469208898,0.002,3654.1,3654.0,5.0087844]
[1753469211706,0.002,3654.1,3654.0,1.84165753]
[1753469211866,0.002,3654.1,3654.0,1.3863]
[1753469212175,0.002,3654.1,3654.0,0.9115]
[1753469212511,0.002,3654.1,3654.0,0.1368]
[1753469213501,0.002,3654.1,3654.0,0.6077]
[1753469213900,0.002,3654.1,3654.0,0.4709]
[1753469214203,2.87545197,3654.1,3654.0,0.4709]
[1753469215082,7.06545197,3654.1,3654.0,0.4709]
[1753469215813,4.3288,3654.1,3653.7,1.6976]
[1753469216024,2.73675853,3654.0,3653.7,1.2267]
[1753469216172,4.3288,3654.1,3653.8,0.4709]
[1753469216374,2.73680082,3654.0,3653.8,0.4709]
[1753469216573,2.73680177,3653.9,3653.8,0.4709]
[1753469217217,2.73693482,3653.8,3653.5,0.7577]
[1753469217369,5.0834,3653.7,3653.3,0.001]
[1753469217573,5.2202,3653.7,3653.3,0.001]
[1753469217891,2.73714605,3653.5,3653.3,0.001]
[1753469218098,4.189,3653.4,3653.3,0.001]
[1753469218475,4.189,3653.4,3653.3,0.4719]
[1753469224396,4.187,3653.4,3653.3,0.4719]
[1753469225495,2.73705313,3653.6,3653.3,0.4719]
[1753469225695,4.187,3653.5,3653.3,0.4719]
[1753469225902,6.92410892,3653.5,3653.3,0.4719]
[1753469226805,3.17057632,3653.4,3653.3,0.001]
[1753469227016,5.64178721,3653.4,3653.3,0.001]
[1753469227194,6.10378721,3653.4,3653.3,0.001]
[1753469227391,5.20838721,3653.4,3653.3,0.001]
[1753469227593,9.39538721,3653.4,3653.3,0.001]
[1753469227927,10.29078721,3653.4,3653.3,0.001]
[1753469231609,10.84078721,3653.4,3653.3,0.001]
[1753469234049,10.40738721,3653.4,3653.3,0.001]
[1753469234337,10.84078721,3653.4,3653.3,0.001]
[1753469235437,11.61728721,3653.4,3653.3,0.001]
[1753469236042,14.61728721,3653.4,3653.3,0.001]
[1753469236215,14.87324279,3653.4,3653.3,0.001]
[1753469236624,14.87324279,3653.4,3653.1,0.001]
[1753469236625,15.00289502,3653.2,3653.1,1e-08]
[1753469236942,21.98976763,3653.2,3653.1,1e-08]
[1753469237241,22.88516763,3653.2,3653.1,1e-08]
[1753469237552,22.88500208,3653.2,3653.1,1e-08]
[1753469238401,23.08830388,3653.2,3653.1,1e-08]
[1753469238606,23.24174808,3653.2,3653.1,1e-08]
[1753469239545,12.00441983,3652.9,3652.8,0.001]
[1753469239711,19.60165406,3652.9,3652.8,1e-08]
[1753469239911,20.67045406,3652.9,3652.8,1e-08]
[1753469240251,20.51700986,3652.9,3652.8,1e-08]
[1753469240415,21.36273849,3652.9,3652.8,1e-08]
[1753469242328,21.20942075,3652.9,3652.8,1e-08]
[1753469244965,28.26942075,3652.9,3652.8,1e-08]
[1753469245446,27.33742075,3652.9,3652.8,1e-08]
[1753469245652,22.59942075,3652.9,3652.8,1e-08]
[1753469245831,16.97600092,3652.9,3652.8,0.47880001]
[1753469246035,17.27021089,3652.9,3652.8,0.91990001]
[1753469246244,7.1968,3652.9,3652.8,0.91990001]
[1753469246449,11.3858,3652.9,3652.8,0.91990001]
[1753469246761,11.249,3652.9,3652.8,0.91990001]
[1753469247557,11.249,3652.9,3652.8,1.75180001]
[1753469247763,0.1368,3653.0,3652.8,1.75180001]
[1753469247927,4.189,3652.9,3652.8,0.83190001]
[1753469248558,4.189,3652.9,3652.8,5.12026383]
[1753469248720,4.189,3652.9,3652.8,4.48942095]
[1753469248920,4.189,3652.9,3652.8,4.48942594]
[1753469249250,4.189,3652.9,3652.8,1.75180001]
[1753469249460,4.189,3652.9,3652.8,4.48942594]
[1753469249825,4.189,3652.9,3652.8,1.75180001]
[1753469250247,0.1368,3653.1,3652.8,1.75180001]
[1753469250454,0.1368,3653.1,3652.8,3.56950728]
[1753469250455,4.188,3653.0,3652.8,3.56950728]
[1753469250758,4.188,3653.0,3652.9,0.9199]
[1753469252669,0.1368,3653.7,3653.0,0.8132]
[1753469252849,4.188,3653.7,3653.2,0.7692]
[1753469253048,0.1368,3654.0,3653.7,3.50614661]
[1753469253449,4.188,3653.9,3653.8,0.9199]
[1753469253876,7.062,3654.1,3654.0,2.73672687]
[1753469254178,7.062,3654.1,3654.0,4.42582687]
[1753469254179,11.25,3654.1,3654.0,4.42582687]
[1753469254360,0.002,3654.1,3654.0,5.15577686]
[1753469254669,4.19,3654.1,3654.0,5.15577686]
[1753469255053,0.002,3654.1,3654.0,5.15577686]
[1753469255467,0.002,3654.1,3654.0,2.41904999]
[1753469255663,0.002,3654.1,3654.0,1.6891]
[1753469255868,0.002,3654.1,3654.0,4.42582687]
[1753469256672,0.002,3654.1,3654.0,1.6891]
[1753469257081,0.002,3654.1,3654.0,4.42582687]
[1753469258173,0.002,3654.1,3654.0,1.6891]
[1753469258477,0.002,3654.1,3654.0,4.42582687]
[1753469258980,0.002,3654.1,3654.0,1.6891]
[1753469259647,0.002,3654.1,3654.0,4.42582687]
[1753469260065,0.002,3654.1,3654.0,1.6891]
[1753469260875,0.002,3654.1,3653.7,0.818]
[1753469261078,0.002,3654.1,3653.9,0.4788]
[1753469261481,0.002,3654.1,3654.0,0.4788]
[1753469262378,0.002,3654.1,3654.0,0.9199]
[1753469263784,0.002,3654.1,3653.7,1.2968]
[1753469263989,0.002,3654.1,3653.8,0.4788]
[1753469264550,0.52778,3654.1,3653.7,0.818]
[1753469264756,0.1368,3653.8,3653.5,0.4788]
[1753469265181,0.1368,3653.8,3653.6,0.4788]
[1753469265697,0.1368,3653.8,3653.4,3.9962695]
[1753469265860,4.189,3654.1,3653.7,0.4788]
[1753469266186,4.189,3654.1,3653.8,0.4411]
[1753469266482,4.189,3654.1,3653.9,0.9199]
[1753469266688,4.189,3654.1,3653.9,2.73673119]
[1753469266995,4.189,3654.1,3654.0,0.9199]
[1753469268152,4.189,3654.1,3654.0,0.4788]
[1753469271157,4.189,3654.1,3654.0,3.21552687]
[1753469271370,4.189,3654.1,3654.0,3.68002687]
[1753469271575,4.189,3654.1,3654.0,0.9433]
[1753469271959,4.189,3654.1,3654.0,3.68002687]
[1753469272697,4.189,3654.1,3654.0,0.9433]
[1753469273191,4.189,3654.1,3654.0,3.68002687]
[1753469273760,4.189,3654.1,3654.0,0.9433]
[1753469274580,4.189,3654.1,3654.0,3.68002687]
[1753469275299,4.189,3654.1,3654.0,0.9433]
[1753469275687,4.189,3654.1,3654.0,3.68002687]
[1753469276000,0.002,3654.1,3654.0,4.41719546]
[1753469276207,0.002,3654.1,3654.0,5.35549546]
[1753469283994,0.002,3654.1,3654.0,9.54049546]
[1753469286705,0.002,3654.1,3654.0,12.54049546]
[1753469289821,0.002,3654.8,3654.7,3.54920269]
[1753469290108,0.002,3654.8,3654.7,3.68600269]
[1753469290314,0.002,3654.8,3654.7,8.80520269]
[1753469291311,0.002,3654.8,3654.7,8.34070269]
[1753469292285,0.002,3654.8,3654.7,7.87100269]
[1753469292482,0.002,3654.8,3654.7,8.97818157]
[1753469293722,0.002,3654.8,3654.7,1.24397888]
[1753469293898,0.9401,3654.8,3654.7,4.3208]
[1753469294084,0.9401,3654.8,3654.7,2.87300269]
[1753469294285,0.002,3654.8,3654.7,3.34270269]
[1753469294614,0.002,3654.8,3654.7,8.75230269]
[1753469294819,0.002,3654.8,3654.7,9.90389783]
[1753469295798,0.002,3654.8,3654.7,5.25539783]
[1753469296091,0.002,3654.8,3654.7,8.96969783]
[1753469296425,0.002,3654.8,3654.7,9.43939783]
[1753469296580,0.002,3654.8,3654.7,9.90389783]
[1753469298789,0.002,3654.8,3654.7,9.43939783]
[1753469298994,0.002,3654.8,3654.7,16.19711118]
[1753469299193,0.002,3654.9,3654.8,5.73612783]
[1753469299413,0.002,3654.9,3654.8,9.21777033]
[1753469299626,0.002,3654.9,3654.8,10.15197033]
[1753469301825,0.002,3654.9,3654.8,9.68747033]
[1753469302425,0.002,3654.9,3654.8,10.15247033]
[1753469304152,0.002,3654.9,3654.8,9.21777033]
[1753469304299,0.4647,3654.9,3654.8,9.91912783]
[1753469304725,0.4647,3654.9,3654.8,6.91912783]
[1753469305096,0.9205,3654.9,3654.8,6.91912783]
[1753469305431,0.4647,3654.9,3654.8,6.91912783]
[1753469306612,0.002,3654.9,3654.8,6.91912783]
[1753469306823,0.002,3654.9,3654.8,8.80692088]
[1753469307141,0.002,3654.9,3654.8,9.74002088]
[1753469307502,1e-08,3654.9,3654.8,13.14202963]
[1753469308001,1e-08,3654.9,3654.8,13.69202963]
[1753469308901,1e-08,3654.9,3654.8,9.50902963]
[1753469309222,1e-08,3654.9,3654.8,13.69202963]
[1753469310643,1e-08,3654.9,3654.8,12.73902088]
[1753469311013,1e-08,3654.9,3654.8,8.55702088]
[1753469311213,1e-08,3654.9,3654.8,12.73902088]
[1753469313533,1e-08,3654.9,3654.8,13.28902088]
[1753469313868,1e-08,3655.6,3655.5,3.49090388]
[1753469314003,1e-08,3655.6,3655.5,17.61613256]
[1753469314209,1e-08,3655.6,3655.5,19.20867653]
[1753469314616,0.002,3656.1,3655.5,19.20867653]
[1753469314617,1e-08,3656.1,3656.0,3.49052975]
[1753469314915,1e-08,3656.1,3656.0,16.99309539]
[1753469315118,1e-08,3656.1,3656.0,18.0356431]
[1753469315336,1e-08,3656.1,3656.0,20.11273889]
[1753469315937,1e-08,3656.1,3656.0,12.88642554]
[1753469316233,1e-08,3656.1,3656.0,13.35452554]
[1753469317598,1e-08,3656.1,3656.0,20.11273889]
[1753469318025,1e-08,3656.4,3656.3,5.73500533]
[1753469318229,1e-08,3656.4,3656.3,18.33849995]
[1753469318433,1e-08,3656.4,3656.3,19.40839995]
[1753469319921,1e-08,3656.4,3656.3,18.94339995]
[1753469320232,0.46270001,3656.4,3656.3,8.0010866]
[1753469320403,0.46270001,3656.4,3656.3,12.1820866]
[1753469320607,0.46270001,3656.4,3656.3,7.05280533]
[1753469320807,0.91850001,3656.4,3656.3,7.05280533]
[1753469322321,0.46270001,3656.4,3656.3,7.05280533]
[1753469322524,1e-08,3656.4,3656.3,7.05280533]
[1753469322707,1e-08,3656.4,3656.3,8.38047798]
[1753469323129,1e-08,3656.4,3656.3,8.84857798]
[1753469323329,1e-08,3656.4,3656.3,19.40989133]
[1753469325208,1e-08,3656.4,3656.3,19.95989133]
[1753469326543,1e-08,3657.0,3656.9,5.73455659]
[1753469326840,1e-08,3657.0,3656.9,16.34456994]
[1753469327041,1e-08,3657.0,3656.9,17.82766994]
[1753469327249,1e-08,3657.0,3656.9,18.63686994]
[1753469327418,1e-08,3657.4,3657.3,2.73425751]
[1753469327609,1e-08,3657.4,3657.3,9.94160008]
[1753469327809,1e-08,3657.4,3657.3,11.79335751]
[1753469329241,1e-08,3657.5,3657.4,5.73418275]
[1753469329442,1e-08,3657.5,3657.4,6.66728275]
[1753469329750,1e-08,3657.5,3657.4,7.28994205]
[1753469330048,0.7122,3658.2,3657.4,7.28994205]
[1753469330347,0.004,3658.7,3658.6,2.73328595]
[1753469330567,0.004,3658.7,3657.8,3.8065]
[1753469330568,0.9303,3658.6,3657.8,3.8065]
[1753469330852,0.8111,3658.7,3658.6,2.73328595]
[1753469331066,0.8111,3658.7,3658.6,6.91228595]
[1753469331231,0.004,3658.7,3658.6,6.91228595]
[1753469331431,0.2495,3659.1,3659.0,2.73298715]
[1753469331643,0.2495,3659.1,3659.0,2.76031702]
[1753469331950,0.2495,3659.1,3659.0,9.91298715]
[1753469332248,0.08723846,3659.2,3659.1,5.73291246]
[1753469332444,0.08723846,3659.2,3659.1,7.01818478]
[1753469332663,0.08723846,3659.2,3659.1,11.70278478]
[1753469334550,0.08723846,3659.2,3659.1,11.70178478]
[1753469334852,0.08723846,3659.2,3659.1,5.73291246]
[1753469335043,0.52983846,3659.2,3659.1,9.91691246]
[1753469335361,1.01753846,3659.2,3659.1,9.91691246]
[1753469335728,1.01753846,3659.2,3659.1,3.0]
[1753469335934,1.01753846,3659.2,3659.1,5.73291246]
[1753469336136,1.01753846,3659.2,3659.1,9.91791246]
[1753469336339,0.08723846,3659.2,3659.1,9.91791246]
[1753469336565,1.01753846,3659.2,3659.1,9.91791246]
[1753469336786,1.01753846,3659.2,3659.1,9.91691246]
[1753469337883,1.01753846,3659.2,3659.1,5.73291246]
[1753469338079,1.01753846,3659.2,3659.1,9.91691246]
[1753469338285,0.08723846,3659.2,3659.1,9.91691246]
[1753469339150,0.52983846,3659.2,3659.1,9.91691246]
[1753469339463,1.01753846,3659.2,3659.1,4.183]
[1753469339874,1.01753846,3659.2,3659.1,6.91591246]
[1753469340215,1.01753846,3659.2,3659.1,0.1368]
[1753469340488,0.71368083,3659.2,3659.1,4.3198]
[1753469340786,0.08723846,3659.2,3659.1,7.05271246]
[1753469341884,0.52983846,3659.2,3659.1,7.05271246]
[1753469342080,1.01753846,3659.2,3659.1,2.86971246]
[1753469342245,1.01753846,3659.2,3659.1,0.1368]
[1753469342452,1.20338083,3659.2,3659.1,4.3188]
[1753469342766,0.08923846,3659.2,3659.1,7.05171246]
[1753469343088,0.53183846,3659.2,3659.1,4.3188]
[1753469343552,1.01953846,3659.2,3659.1,4.3188]
[1753469344309,1.01953846,3659.2,3659.1,0.1368]
[1753469344467,2.01688083,3659.2,3659.0,4.184]
[1753469344669,1.08658083,3659.2,3658.9,4.184]
[1753469344876,0.9303,3659.1,3658.8,0.1368]
[1753469345077,0.47496618,3659.0,3658.8,4.184]
[1753469345392,0.9303,3658.9,3658.7,4.3208]
[1753469345711,1.7436,3658.8,3658.7,4.3208]
[1753469346188,1.7436,3658.8,3658.7,4.184]
[1753469346508,1.7436,3658.8,3658.5,4.185]
[1753469346802,0.9303,3658.7,3658.4,0.1368]
[1753469347002,0.9303,3658.7,3658.3,4.185]
[1753469347167,0.4426,3658.6,3658.3,2.87028354]
[1753469347370,2.4178,3659.5,3658.5,2.73329716]
[1753469347606,0.7758,3659.0,3658.4,2.73337091]
[1753469347775,0.9303,3658.9,3658.7,0.1368]
[1753469348103,0.9303,3658.9,3658.7,2.86998537]
[1753469348279,0.4877,3658.9,3658.7,2.86998537]
[1753469348487,0.4426,3658.8,3658.7,0.1368]
[1753469348804,0.4426,3658.8,3658.7,2.87001124]
[1753469349667,0.7758,3659.0,3658.7,2.87001124]
[1753469349893,1.2184,3659.0,3658.7,2.87001124]
[1753469350486,1.2184,3659.0,3658.8,2.73311233]
[1753469350911,1.2184,3659.0,3658.7,2.87000065]
[1753469351208,0.7758,3659.0,3658.8,2.73313501]
[1753469351394,0.4426,3658.9,3658.8,2.73313501]
[1753469351596,0.4426,3658.9,3658.7,2.86998146]
[1753469351800,0.4426,3658.9,3658.7,2.86998829]
[1753469351998,0.4426,3658.9,3658.8,4.187]
[1753469352674,0.9303,3658.9,3658.8,4.185]
[1753469352867,1.68413373,3658.9,3658.8,4.185]
[1753469353102,1.68413373,3658.9,3658.4,0.1368]
[1753469353306,5.30549738,3658.8,3658.5,4.185]
[1753469353574,1.8853,3658.7,3658.4,4.186]
[1753469353808,1.8853,3658.7,3658.2,0.1368]
[1753469354004,0.9303,3658.6,3658.3,4.186]
[1753469354391,3.6637128,3658.5,3658.2,0.1368]
[1753469354604,0.8121,3658.4,3658.2,4.185]
[1753469354905,0.9303,3658.3,3658.2,4.185]
[1753469355608,0.8121,3658.4,3658.2,4.185]
[1753469356105,0.4426,3658.3,3658.2,4.185]
[1753469356784,0.8121,3658.4,3658.2,4.185]
[1753469356989,0.9058,3658.7,3658.3,2.7335101]
[1753469357397,0.9303,3658.6,3658.2,4.185]
[1753469357597,0.4426,3658.5,3658.2,4.185]
[1753469358188,0.4426,3658.5,3658.2,6.91858467]
[1753469358682,0.4426,3658.5,3658.2,4.185]
[1753469358881,0.4426,3658.5,3658.2,6.91858199]
[1753469359391,1.18165749,3658.7,3658.3,2.73349919]
[1753469359589,1.62425749,3658.7,3658.3,2.73349919]
[1753469360001,1.62425749,3658.7,3658.2,6.91856323]
[1753469360207,3.91488063,3658.7,3658.2,4.185]
[1753469360406,4.03240475,3658.6,3658.2,4.185]
[1753469360619,0.436,3658.5,3658.2,4.185]
[1753469362280,0.436,3658.5,3658.2,6.91857862]
[1753469362595,0.436,3658.5,3658.2,4.185]
[1753469363299,0.8939,3658.4,3658.1,0.1368]
[1753469363485,2.73359804,3658.2,3658.0,4.18]
[1753469363680,3.45878213,3658.2,3657.8,4.3178]
[1753469363886,0.436,3658.1,3657.8,4.3178]
[1753469364296,0.8939,3658.0,3657.4,0.479]
[1753469364591,0.7896,3657.9,3657.5,4.3178]
[1753469364915,0.436,3657.8,3657.5,4.3178]
[1753469365920,0.436,3657.8,3657.3,2.73425167]
[1753469365921,0.436,3657.7,3657.3,4.181]
[1753469366102,3.16998118,3657.7,3657.2,0.48]
[1753469366321,3.30678118,3657.7,3657.2,4.3178]
[1753469366487,0.436,3657.6,3657.2,4.3178]
[1753469366688,0.436,3657.6,3657.2,7.05212668]
[1753469366895,0.436,3657.6,3657.3,2.73424628]
[1753469367112,0.1368,3657.7,3657.3,3.21324628]
[1753469367307,0.1368,3657.7,3657.4,3.21317807]
[1753469367518,0.1368,3657.7,3657.4,0.479]
[1753469367716,0.1368,3657.7,3657.5,0.479]
[1753469367910,0.1368,3657.7,3657.4,0.479]
[1753469368320,0.1368,3657.7,3657.4,3.21314923]
[1753469368640,0.7896,3657.9,3657.6,2.73403324]
[1753469369187,0.7896,3657.9,3657.7,0.479]
[1753469369387,0.7958,3658.1,3657.7,3.1932501]
[1753469369621,0.7958,3658.3,3657.8,1.0751]
[1753469369818,4.181,3658.4,3658.0,2.87049176]
[1753469370188,4.181,3658.4,3658.1,0.479]
[1753469370595,4.181,3658.4,3658.2,0.479]
[1753469370797,4.181,3658.4,3658.3,0.479]
[1753469371121,0.1368,3658.8,3658.3,0.9383]
[1753469371331,0.1368,3658.8,3658.2,0.1368]
[1753469371332,4.18,3658.7,3658.4,3.67171955]
[1753469371486,4.18,3658.7,3658.4,3.19271955]
[1753469371686,0.7914,3658.9,3658.5,3.21230237]
[1753469371924,0.1368,3659.0,3658.6,0.9383]
[1753469372228,0.1368,3659.0,3658.5,0.1368]
[1753469372389,3.3057873,3659.0,3658.5,0.6158]
[1753469373124,2.73307884,3658.9,3658.5,0.6158]
[1753469373433,2.73315714,3658.8,3658.5,0.6158]
[1753469373628,0.436,3658.9,3658.5,0.6158]
[1753469373928,0.8939,3658.8,3658.5,0.1368]
[1753469374148,0.436,3658.7,3658.5,0.1368]
[1753469374654,1.1558286,3658.9,3658.5,0.1368]
[1753469374823,0.436,3658.6,3658.2,4.3178]
[1753469375026,0.436,3658.6,3658.2,0.1368]
[1753469375027,3.52478941,3658.5,3658.2,0.1368]
[1753469375358,3.52478941,3658.5,3657.7,0.7717]
[1753469375359,4.39359335,3658.4,3657.9,0.1368]
[1753469375519,3.30628673,3658.4,3657.9,0.1368]
[1753469375847,3.30628673,3658.4,3657.9,0.6158]
[1753469376146,3.16954007,3658.3,3657.9,0.1368]
[1753469376323,0.436,3658.3,3657.9,0.1368]
[1753469376512,3.32816661,3658.4,3657.9,0.1368]
[1753469376513,0.1368,3658.4,3657.9,0.1368]
[1753469376716,0.1368,3658.4,3658.0,0.479]
[1753469377019,0.1368,3658.4,3658.1,0.479]
[1753469377528,2.87024595,3658.4,3658.1,0.479]
[1753469377950,0.1368,3658.4,3658.1,0.479]
[1753469378254,0.1368,3658.4,3658.2,2.73357513]
[1753469378454,4.18,3658.6,3658.2,3.80867513]
[1753469378746,4.18,3658.6,3658.3,0.479]
[1753469379347,4.18,3658.6,3658.2,0.1368]
[1753469379348,6.91328768,3658.6,3658.2,0.1368]
[1753469379520,4.616,3658.6,3658.2,0.1368]
[1753469379721,4.616,3658.6,3658.2,3.34933685]
[1753469379916,4.18,3658.6,3658.2,3.34933685]
[1753469380285,4.18,3658.6,3658.2,0.6158]
[1753469380451,4.18,3658.6,3658.2,3.34936765]
[1753469380766,4.18,3658.6,3658.2,0.6158]
[1753469380922,4.18,3658.6,3657.8,4.179]
[1753469380923,2.73349232,3658.4,3657.8,4.179]
[1753469381122,2.87029232,3658.4,3657.9,0.1368]
[1753469381348,0.436,3658.3,3657.9,0.1368]
[1753469381548,0.1368,3658.4,3658.0,3.21273428]
[1753469381753,0.1368,3658.4,3657.9,3.32987885]
[1753469381951,0.1368,3658.4,3658.1,0.479]
[1753469382464,0.1368,3658.4,3658.2,0.479]
[1753469383456,0.1368,3658.4,3658.0,2.73369221]
[1753469383760,0.1368,3658.4,3658.2,0.479]
[1753469384261,0.1368,3658.4,3657.9,0.1368]
[1753469384462,0.8939,3658.3,3657.9,0.1368]
[1753469384759,0.436,3658.2,3657.9,0.1368]
[1753469385125,0.1368,3658.4,3657.0,0.479]
[1753469385126,2.73393406,3657.8,3657.0,0.479]
[1753469385326,2.73408557,3657.6,3657.0,0.479]
[1753469385522,2.73411254,3657.5,3657.2,0.1378]
[1753469386038,3.93661254,3657.5,3657.2,0.1378]
[1753469386244,3.93661254,3657.5,3657.2,0.001]
[1753469386447,2.73425751,3657.3,3657.2,0.001]
[1753469387146,3.17025751,3657.3,3657.2,0.001]
[1753469387349,0.9033,3657.5,3657.2,0.001]
[1753469387774,2.73425751,3657.3,3657.2,0.001]
[1753469388272,3.17025751,3657.3,3657.2,0.001]
[1753469388435,3.76495751,3657.3,3657.2,0.001]
[1753469389470,4.58595751,3657.3,3657.2,0.001]
[1753469390173,6.77795751,3657.3,3657.2,0.001]
[1753469390384,8.20683244,3657.3,3657.2,0.001]
[1753469392485,5.12093244,3657.3,3657.2,0.001]
[1753469392658,9.30093244,3657.3,3657.2,0.001]
[1753469393553,0.9578,3657.3,3657.2,0.001]
[1753469393759,7.87305751,3657.3,3657.2,0.001]
[1753469394283,7.05205751,3657.3,3657.2,0.001]
[1753469394467,7.05205751,3657.3,3657.2,0.4814]
[1753469394844,0.1368,3657.3,3657.2,0.4814]
[1753469395172,4.181,3657.3,3657.2,0.956]
[1753469395540,0.1368,3657.4,3657.2,0.956]
[1753469395741,4.181,3657.3,3657.2,0.001]
[1753469396038,4.181,3657.3,3657.2,0.1378]
[1753469396376,4.181,3657.3,3657.2,0.6182]
[1753469396589,4.181,3657.3,3657.2,1.0928]
[1753469397142,4.181,3657.3,3657.2,3.82713227]
[1753469397679,4.181,3657.3,3657.2,1.0928]
[1753469398683,4.181,3657.3,3657.2,0.6182]
[1753469399982,2.87078606,3657.7,3657.2,0.6182]
[1753469400188,4.18,3657.6,3657.2,0.6182]
[1753469400351,6.91405479,3657.6,3657.2,0.6182]
[1753469400664,4.18,3657.5,3657.2,0.6182]
[1753469400860,4.18,3657.5,3657.3,0.4804]
[1753469401264,4.18,3657.5,3657.2,0.1378]
[1753469401555,4.18,3657.5,3657.4,0.955]
[1753469401886,4.18,3657.5,3657.4,0.4804]
[1753469402191,4.18,3657.5,3657.2,1.0928]
[1753469402387,4.18,3657.5,3657.2,0.6124]
[1753469402561,2.87077453,3657.7,3657.3,0.4804]
[1753469402892,4.18,3657.6,3657.3,0.4804]
[1753469404494,6.914072,3657.6,3657.3,0.4804]
[1753469404988,6.914072,3657.6,3657.2,0.1378]
[1753469405192,4.18,3657.6,3657.3,0.4804]
[1753469405491,6.91406776,3657.6,3657.3,0.4804]
[1753469405789,2.32857708,3657.5,3657.2,0.001]
[1753469405977,4.18,3657.4,3657.2,0.001]
[1753469406294,4.618,3657.4,3657.2,0.001]
[1753469406589,3.17225751,3657.3,3657.2,0.001]
[1753469406794,3.30905751,3657.3,3657.2,0.001]
[1753469407656,5.29931288,3657.3,3657.2,0.001]
[1753469408996,3.30905751,3657.3,3657.2,0.001]
[1753469410067,0.5748,3657.3,3657.2,0.001]
[1753469410312,0.1368,3657.3,3657.2,0.001]
[1753469410996,2.87105751,3657.3,3657.2,0.001]
[1753469411507,4.18,3657.3,3657.2,0.956]
[1753469411716,4.18,3657.3,3657.2,1.7552]
[1753469411890,4.18,3657.3,3657.2,2.61451286]
[1753469412095,4.18,3657.3,3657.2,5.34884513]
[1753469412719,4.18,3657.3,3657.2,2.61451286]
[1753469412914,4.18,3657.3,3657.2,5.34884513]
[1753469413211,4.18,3657.3,3657.2,2.61451286]
[1753469413413,4.18,3657.3,3657.2,4.62633227]
[1753469414032,4.18,3657.3,3657.2,1.892]
[1753469414194,4.18,3657.3,3657.2,0.6182]
[1753469414880,4.18,3657.3,3657.2,0.001]
[1753469416122,4.18,3657.3,3657.2,0.4814]
[1753469417214,4.618,3657.3,3657.2,0.001]
[1753469417514,4.18,3657.3,3657.2,0.001]
[1753469418018,4.18,3657.3,3657.2,0.4814]
[1753469418826,4.18,3657.3,3657.2,0.956]
[1753469419114,4.18,3657.3,3657.2,1.0928]
[1753469419788,4.18,3657.3,3657.2,3.82711292]
[1753469420000,4.18,3657.3,3657.2,1.0928]
[1753469421223,4.18,3657.3,3657.2,0.1378]
[1753469422019,11.12347336,3657.3,3657.2,0.001]
[1753469422919,17.40701982,3657.3,3657.2,0.001]
[1753469423496,17.95701982,3657.3,3657.2,0.001]
[1753469425710,6.46867336,3657.3,3657.2,0.001]
[1753469425904,10.20547336,3657.3,3657.2,0.001]
[1753469426098,4.51305751,3657.3,3657.2,0.001]
[1753469426305,8.69305751,3657.3,3657.2,0.462]
[1753469426500,5.9588,3657.3,3657.2,0.462]
[1753469426721,4.18,3657.3,3657.2,0.8983]
[1753469428353,0.1368,3657.4,3657.2,0.8983]